bitfinex/quotes_BTCUSD_20220115
["timestamp","ask_amount","ask_price","bid_price","bid_amount"]
[1642218228552,0.00024066,43041.0,43040.0,0.92982967]
[1642218228750,0.00024066,43041.0,43040.0,1.2717549]
[1642218229901,0.00024066,43041.0,43040.0,1.2937549]
[1642218230102,0.59590514,43048.0,43041.0,0.35]
[1642218230303,0.59590514,43052.0,43042.0,0.22616859]
[1642218230503,0.00010314,43047.0,43042.0,0.22616859]
[1642218231002,8.595e-05,43046.0,43042.0,0.22616859]
[1642218231403,6.876e-05,43045.0,43042.0,0.22616859]
[1642218231801,0.0001719,43051.0,43042.0,0.22616859]
[1642218232202,0.00015471,43050.0,43040.0,0.8186079]
[1642218232603,0.00013752,43049.0,43040.0,0.8186079]
[1642218233003,0.00012033,43048.0,43040.0,0.7996079]
[1642218233745,0.00012033,43048.0,43040.0,0.8236079]
[1642218233951,0.59590514,43046.0,43040.0,0.8236079]
[1642218234147,0.59590514,43046.0,43040.0,0.7655278]
[1642218234447,6.876e-05,43045.0,43042.0,0.05808376]
[1642218234847,6.876e-05,43045.0,43040.0,0.7655278]
[1642218235047,6.876e-05,43045.0,43040.0,0.7415278]
[1642218235851,6.876e-05,43045.0,43040.0,0.7104418]
[1642218236246,6.876e-05,43045.0,43041.0,0.21059579]
[1642218237906,6.876e-05,43045.0,43043.0,0.058084]
[1642218238109,6.876e-05,43045.0,43041.0,0.21059579]
[1642218238311,6.876e-05,43045.0,43041.0,0.21557094]
[1642218240714,6.876e-05,43045.0,43041.0,0.26557094]
[1642218241050,0.49325173,43048.0,43041.0,0.21557094]
[1642218241649,0.49325173,43048.0,43041.0,0.273655]
[1642218241849,0.49325173,43048.0,43043.0,0.058084]
[1642218242050,0.49325173,43048.0,43044.0,0.20830543]
[1642218242248,0.69522294,43050.0,43044.0,0.20830543]
[1642218242450,0.69522294,43049.0,43044.0,0.20830543]
[1642218242650,0.6952917,43049.0,43048.0,0.33413234]
[1642218243051,6.876e-05,43049.0,43048.0,0.33413234]
[1642218244154,6.876e-05,43049.0,43048.0,0.56509589]
[1642218244556,6.876e-05,43049.0,43048.0,0.86509589]
[1642218244797,6.876e-05,43049.0,43048.0,0.94104889]
[1642218245797,6.876e-05,43049.0,43048.0,0.96004889]
[1642218246601,6.876e-05,43049.0,43048.0,1.30070076]
[1642218247201,6.876e-05,43049.0,43048.0,1.28170076]
[1642218247804,6.876e-05,43049.0,43048.0,1.30470076]
[1642218248649,6.876e-05,43049.0,43048.0,2.15470076]
[1642218249249,8.76e-06,43049.0,43048.0,2.70891655]
[1642218249450,0.69522294,43059.0,43053.0,0.058057]
[1642218249451,0.58728382,43057.0,43053.0,0.058057]
[1642218249650,0.58728382,43057.0,43055.0,0.31572041]
[1642218249851,0.53724379,43057.0,43056.0,0.72753575]
[1642218250048,0.53724379,43057.0,43056.0,0.22753575]
[1642218250249,0.53738131,43057.0,43056.0,0.22753575]
[1642218250449,0.00013752,43057.0,43056.0,0.52692862]
[1642218251252,0.00013752,43057.0,43056.0,0.90288162]
[1642218251851,0.00013752,43057.0,43056.0,0.92988162]
[1642218253000,0.00013752,43057.0,43056.0,1.04599462]
[1642218253199,0.00013752,43057.0,43056.0,1.01899462]
[1642218253801,0.00013752,43057.0,43056.0,1.04599462]
[1642218254601,0.00013752,43057.0,43056.0,1.54599462]
[1642218254802,0.00013752,43057.0,43056.0,2.04599462]
[1642218255203,0.00013752,43057.0,43056.0,2.01899462]
[1642218255806,0.00013752,43057.0,43056.0,2.05399462]
[1642218256253,7.52e-06,43057.0,43056.0,1.80080175]
[1642218256447,0.69522294,43066.0,43056.0,1.95080175]
[1642218256647,0.69522294,43066.0,43064.0,0.00126426]
[1642218256849,0.00013752,43065.0,43064.0,0.00126426]
[1642218257246,0.00013752,43065.0,43064.0,1.78063544]
[1642218257446,0.00013752,43065.0,43064.0,2.15658844]
[1642218257646,0.00013752,43065.0,43064.0,3.43558844]
[1642218257850,0.00013752,43065.0,43064.0,3.51558844]
[1642218258447,0.00013752,43065.0,43064.0,3.41558844]
[1642218258849,0.00013752,43065.0,43064.0,3.51558844]
[1642218259047,0.00013752,43065.0,43064.0,4.51558844]
[1642218259249,0.00013752,43065.0,43064.0,4.48558844]
[1642218259908,0.00013752,43065.0,43064.0,4.52258844]
[1642218260314,0.001,43076.0,43065.0,2.525953]
[1642218260513,0.001,43076.0,43071.0,0.05804]
[1642218260711,0.001,43076.0,43074.0,0.00126324]
[1642218260916,0.001,43076.0,43074.0,0.06867324]
[1642218261211,0.001,43076.0,43075.0,0.375953]
[1642218261410,0.74588965,43080.0,43075.0,0.375953]
[1642218261610,0.0001891,43076.0,43075.0,0.116054]
[1642218261810,0.0001891,43076.0,43075.0,1.80568436]
[1642218262612,0.0001891,43076.0,43075.0,2.80568436]
[1642218262812,0.0001891,43076.0,43075.0,2.89596336]
[1642218263011,0.0001891,43076.0,43075.0,1.94596336]
[1642218263211,0.0001891,43076.0,43075.0,1.57880282]
[1642218263852,0.0001891,43076.0,43075.0,1.60480282]
[1642218264267,0.0001891,43076.0,43075.0,1.57255282]
[1642218264452,0.0001891,43076.0,43075.0,1.96991317]
[1642218265353,0.0001891,43076.0,43075.0,1.94391317]
[1642218265853,0.0001891,43076.0,43075.0,1.57955282]
[1642218267158,0.0001891,43076.0,43075.0,1.54655282]
[1642218267408,0.0001891,43076.0,43075.0,1.91288591]
[1642218268105,0.0001891,43076.0,43075.0,1.94788591]
[1642218268708,0.0001891,43076.0,43075.0,1.99788591]
[1642218268908,0.0001891,43076.0,43075.0,2.04788591]
[1642218269109,0.0001891,43076.0,43075.0,2.01288591]
[1642218270009,0.0001891,43076.0,43075.0,2.04588591]
[1642218271166,0.0001891,43076.0,43075.0,2.01288591]
[1642218271366,0.0001891,43076.0,43075.0,3.24309325]
[1642218271567,0.0001891,43076.0,43075.0,2.24309325]
[1642218271766,0.58462242,43079.0,43077.0,1.225953]
[1642218271967,0.58462242,43079.0,43078.0,1.45569692]
[1642218272567,0.00012033,43083.0,43082.0,0.27981543]
[1642218272966,0.78556803,43088.0,43082.0,0.27981543]
[1642218273367,0.97564578,43084.0,43082.0,0.27981543]
[1642218273766,0.00012033,43083.0,43082.0,0.27981543]
[1642218274168,0.97576611,43083.0,43082.0,0.27981543]
[1642218274800,0.97576611,43083.0,43082.0,0.33784458]
[1642218275801,0.97076611,43083.0,43082.0,0.33784458]
[1642218276300,0.97076611,43083.0,43082.0,0.27981543]
[1642218279158,0.97076611,43083.0,43079.0,0.34391767]
[1642218279359,0.97076611,43083.0,43079.0,0.05803422]
[1642218280263,0.6868227,43080.0,43079.0,0.05803422]
[1642218280661,0.6868227,43080.0,43079.0,0.05810298]
[1642218281763,0.6868227,43081.0,43079.0,0.05810298]
[1642218282161,0.6868227,43081.0,43079.0,6.876e-05]
[1642218282414,0.6868227,43080.0,43079.0,6.876e-05]
[1642218285615,0.6868227,43080.0,43078.0,0.3943576]
[1642218286498,0.6868227,43080.0,43078.0,0.4523906]
[1642218286499,0.58913269,43080.0,43078.0,0.4523906]
[1642218287601,0.58913269,43080.0,43078.0,0.3943576]
[1642218287800,0.58913269,43080.0,43078.0,0.34125383]
[1642218288004,0.58913269,43080.0,43078.0,0.37025383]
[1642218289401,0.3104,43088.0,43078.0,0.37025383]
[1642218289602,0.3104,43088.0,43085.0,0.32634905]
[1642218289802,0.00013752,43087.0,43085.0,0.32634905]
[1642218290007,0.00013752,43087.0,43083.0,0.25873387]
[1642218290203,0.00012033,43086.0,43078.0,0.05803514]
[1642218290605,0.22428078,43089.0,43078.0,0.05803514]
[1642218290606,0.00010314,43085.0,43078.0,0.05803514]
[1642218291004,8.595e-05,43084.0,43082.0,0.27207933]
[1642218291604,6.876e-05,43083.0,43082.0,0.27207933]
[1642218292409,6.876e-05,43083.0,43079.0,0.31287808]
[1642218293006,6.876e-05,43083.0,43079.0,0.02]
[1642218293211,6.876e-05,43083.0,43077.0,0.116058]
[1642218293555,6.876e-05,43083.0,43078.0,0.32409355]
[1642218293955,6.876e-05,43083.0,43074.0,0.3157]
[1642218294156,6.876e-05,43083.0,43075.0,0.27400938]
[1642218294356,0.11510382,43080.0,43075.0,6.877e-05]
[1642218294585,0.23256476,43079.0,43075.0,6.877e-05]
[1642218295057,0.0249296,43076.0,43075.0,6.877e-05]
[1642218295258,0.03096194,43076.0,43075.0,6.877e-05]
[1642218295657,0.03096194,43076.0,43073.0,0.00010315]
[1642218297058,0.00603234,43076.0,43073.0,0.00010315]
[1642218297707,0.00603234,43076.0,43072.0,0.00012034]
[1642218298708,0.25888719,43079.0,43072.0,0.00012034]
[1642218299508,0.0462,43081.0,43072.0,0.00012034]
[1642218299708,0.0462,43081.0,43072.0,0.05816334]
[1642218300108,0.0462,43081.0,43073.0,0.00010315]
[1642218300309,0.0462,43081.0,43074.0,0.31841372]
[1642218300708,0.0462,43081.0,43073.0,0.00010315]
[1642218301154,0.0462,43081.0,43072.0,0.00012034]
[1642218301755,0.0462,43081.0,43072.0,0.2901584]
[1642218302154,0.0462,43081.0,43073.0,0.00010315]
[1642218302758,0.58913269,43075.0,43073.0,0.00010315]
[1642218303457,0.58913269,43076.0,43073.0,0.00010315]
[1642218303857,0.58913269,43076.0,43073.0,0.05814615]
[1642218304058,0.58913269,43075.0,43073.0,0.05814615]
[1642218304257,0.58913269,43075.0,43074.0,8.596e-05]
[1642218304658,0.58913269,43075.0,43073.0,0.00010315]
[1642218305104,0.58913269,43075.0,43072.0,0.00012034]
[1642218305506,0.0462,43081.0,43072.0,0.00012034]
[1642218305507,0.58913269,43074.0,43072.0,0.00012034]
[1642218307709,0.58913269,43074.0,43072.0,0.05816434]
[1642218308109,0.58913269,43074.0,43073.0,0.00010315]
[1642218308560,0.58913269,43074.0,43072.0,0.00012034]
[1642218308861,0.375953,43073.0,43072.0,0.00012034]
[1642218309058,0.614806,43073.0,43072.0,0.00012034]
[1642218309257,0.66641831,43073.0,43069.0,0.00017191]
[1642218309457,0.81803062,43073.0,43069.0,0.00017191]
[1642218309657,0.71803062,43073.0,43066.0,0.2485384]
[1642218309858,0.34207762,43073.0,43066.0,0.2485384]
[1642218310058,0.10322462,43073.0,43067.0,0.00020629]
[1642218311059,0.58788606,43072.0,43067.0,0.00020629]
[1642218311461,0.80996694,43072.0,43067.0,0.00020629]
[1642218311658,0.58788606,43072.0,43067.0,0.00020629]
[1642218311859,0.58788606,43071.0,43067.0,0.00020629]
[1642218312509,0.10322462,43073.0,43067.0,0.00020629]
[1642218314013,0.10322462,43073.0,43069.0,0.05804791]
[1642218314410,0.0462,43076.0,43070.0,0.00015472]
[1642218314615,0.05161231,43071.0,43070.0,0.00015472]
[1642218316052,0.05161231,43071.0,43069.0,0.00017191]
[1642218316454,0.05161231,43071.0,43067.0,0.00020629]
[1642218316658,0.05161231,43071.0,43068.0,0.05804826]
[1642218317057,0.05161231,43071.0,43069.0,0.00017191]
[1642218317660,0.05161231,43071.0,43069.0,0.05821991]
[1642218318059,0.05161231,43071.0,43070.0,0.00015472]
[1642218318659,0.04661231,43071.0,43070.0,0.00015472]
[1642218319659,0.05161231,43072.0,43070.0,0.00015472]
[1642218319910,0.04661231,43071.0,43070.0,0.00015472]
[1642218320110,0.09822462,43071.0,43070.0,0.30927944]
[1642218323013,0.09822462,43071.0,43070.0,0.30427944]
[1642218331563,0.09822462,43071.0,43070.0,0.68023244]
[1642218335325,0.09822462,43071.0,43070.0,0.30427944]
[1642218342709,0.09822462,43071.0,43070.0,0.52004014]
[1642218343108,0.89878606,43079.0,43071.0,0.7]
[1642218343309,0.6868227,43081.0,43076.0,0.65]
[1642218343508,0.00013753,43078.0,43077.0,0.82521869]
[1642218343708,0.58669012,43082.0,43077.0,0.98090085]
[1642218343709,0.00017191,43080.0,43077.0,0.98090085]
[1642218343911,0.6868227,43084.0,43079.0,0.00121216]
[1642218344111,0.6868227,43084.0,43083.0,0.37721104]
[1642218344410,0.63678267,43084.0,43083.0,0.98341648]
[1642218344609,0.63678267,43084.0,43083.0,1.09944838]
[1642218344811,0.63678267,43091.0,43090.0,0.29018268]
[1642218345810,0.3075,43096.0,43090.0,0.29018268]
[1642218346054,0.375953,43095.0,43090.0,0.29018268]
[1642218346259,0.014,43091.0,43090.0,0.29018268]
[1642218346657,0.01422347,43091.0,43090.0,0.29018268]
[1642218347457,0.01422347,43091.0,43090.0,0.66613568]
[1642218348057,0.00022347,43091.0,43090.0,0.66613568]
[1642218348257,0.00022347,43091.0,43090.0,0.69013568]
[1642218349461,0.00022347,43091.0,43090.0,0.66613568]
[1642218350306,0.00022347,43091.0,43090.0,0.69213568]
[1642218350707,0.00022347,43091.0,43090.0,0.90521848]
[1642218350904,0.00022347,43091.0,43090.0,0.69213568]
[1642218351506,0.00022347,43091.0,43090.0,0.66613568]
[1642218352205,0.00022347,43091.0,43090.0,0.69213568]
[1642218352809,0.00022347,43091.0,43090.0,0.401953]
[1642218353005,0.00022347,43091.0,43090.0,0.026]
[1642218353658,0.00022347,43091.0,43086.0,0.058026]
[1642218354061,0.00020628,43090.0,43087.0,0.32905099]
[1642218354460,0.00018909,43089.0,43087.0,0.32905099]
[1642218354861,0.0001719,43088.0,43087.0,0.32905099]
[1642218355060,0.0001719,43088.0,43087.0,0.70500399]
[1642218356262,0.0001719,43088.0,43087.0,0.74500399]
[1642218357512,0.0001719,43088.0,43087.0,0.70500399]
[1642218357914,0.0001719,43088.0,43087.0,1.20500399]
[1642218358315,0.0001719,43088.0,43087.0,1.24400399]
[1642218359416,0.0001719,43088.0,43087.0,1.20500399]
[1642218360316,0.0001719,43088.0,43087.0,1.24300399]
[1642218361557,0.0001719,43088.0,43087.0,1.20500399]
[1642218362358,0.0001719,43088.0,43087.0,1.24200399]
[1642218363558,0.0001719,43088.0,43087.0,1.20500399]
[1642218364359,0.0001719,43088.0,43087.0,1.24200399]
[1642218366011,0.0001719,43088.0,43087.0,1.20500399]
[1642218366411,0.0001719,43088.0,43087.0,1.24600399]
[1642218367514,0.0001719,43088.0,43087.0,1.20500399]
[1642218368559,0.0001719,43088.0,43087.0,1.23700399]
[1642218369555,0.0001719,43088.0,43087.0,1.20500399]
[1642218370355,0.0001719,43088.0,43087.0,1.23800399]
[1642218371556,0.0001719,43088.0,43087.0,1.20500399]
[1642218372408,0.0001719,43088.0,43087.0,1.23700399]
[1642218373607,0.0001719,43088.0,43087.0,1.20500399]
[1642218374009,0.0001719,43088.0,43087.0,0.875953]
[1642218374309,0.0001719,43088.0,43087.0,0.911953]
[1642218374509,0.0001719,43088.0,43087.0,0.536]
[1642218375710,0.0001719,43088.0,43087.0,0.5]
[1642218376160,0.0001719,43088.0,43082.0,0.5]
[1642218376362,0.0001719,43088.0,43087.0,0.04]
[1642218376559,0.375953,43088.0,43087.0,0.04]
[1642218377560,0.375953,43088.0,43082.0,0.5]
[1642218377760,0.96700384,43089.0,43082.0,0.5]
[1642218377961,0.00015471,43087.0,43082.0,0.5]
[1642218378362,0.00013752,43086.0,43082.0,0.649]
[1642218378763,0.00012033,43085.0,43082.0,0.649]
[1642218379162,0.58807705,43087.0,43082.0,0.649]
[1642218379163,0.00010314,43084.0,43082.0,0.649]
[1642218379563,8.595e-05,43083.0,43082.0,0.5]
[1642218380410,8.595e-05,43083.0,43082.0,0.65]
[1642218381614,8.595e-05,43083.0,43082.0,0.5]
[1642218382411,8.595e-05,43083.0,43082.0,0.608]
[1642218383663,8.595e-05,43083.0,43082.0,0.5]
[1642218384271,8.595e-05,43083.0,43080.0,0.81137647]
[1642218384464,8.595e-05,43083.0,43082.0,0.153]
[1642218384662,0.00727055,43088.0,43082.0,0.153]
[1642218385065,0.00015471,43087.0,43082.0,0.153]
[1642218385364,0.00013752,43086.0,43082.0,0.153]
[1642218385566,0.00013752,43086.0,43080.0,0.5]
[1642218385767,0.29983356,43084.0,43080.0,0.5]
[1642218385966,0.422153,43083.0,43080.0,0.5]
[1642218386168,0.52223895,43083.0,43080.0,0.5]
[1642218386365,6.876e-05,43082.0,43080.0,0.593]
[1642218386566,0.3492,43081.0,43080.0,0.593]
[1642218386768,0.3492,43081.0,43080.0,0.093]
[1642218386966,0.465315,43081.0,43080.0,0.093]
[1642218387625,0.3492,43081.0,43071.0,0.27178816]
[1642218387827,0.2454019,43075.0,43070.0,0.5]
[1642218388030,0.0462,43074.0,43072.0,0.00010315]
[1642218389626,0.0462,43074.0,43071.0,0.00012034]
[1642218390026,0.0462,43074.0,43069.0,0.00015472]
[1642218391664,0.02682749,43073.0,43069.0,0.00015472]
[1642218391865,0.07906046,43073.0,43069.0,0.00015472]
[1642218395714,0.22358735,43072.0,43069.0,0.00015472]
[1642218396113,0.0462,43071.0,43069.0,0.00015472]
[1642218396312,0.23663962,43070.0,43069.0,0.00015472]
[1642218396514,0.28283962,43070.0,43068.0,0.124]
[1642218396713,0.23332058,43069.0,43068.0,0.124]
[1642218396913,0.27952058,43069.0,43068.0,0.124]
[1642218397813,0.27952058,43069.0,43064.0,0.5]
[1642218398213,0.27952058,43069.0,43065.0,0.00022348]
[1642218398665,0.33758958,43069.0,43065.0,0.00022348]
[1642218400065,0.33758958,43069.0,43058.0,1.09531089]
[1642218400066,0.33758958,43069.0,43062.0,0.00027505]
[1642218400266,0.27952058,43069.0,43059.0,0.00032662]
[1642218400866,0.27952058,43069.0,43060.0,0.24964029]
[1642218401066,0.27952058,43069.0,43060.0,0.74964029]
[1642218401266,0.27952058,43069.0,43061.0,0.00029224]
[1642218401467,0.33758858,43069.0,43061.0,0.00029224]
[1642218401867,0.27952058,43069.0,43061.0,0.00029224]
[1642218405513,0.00123946,43067.0,43061.0,0.00029224]
[1642218405711,0.0462,43066.0,43061.0,0.00029224]
[1642218405912,0.24061603,43065.0,43061.0,0.00029224]
[1642218406160,0.104275,43064.0,43061.0,0.00029224]
[1642218406359,0.25973529,43062.0,43061.0,0.00029224]
[1642218406565,0.25973529,43062.0,43060.0,0.114]
[1642218406960,0.25973529,43062.0,43061.0,0.00029224]
[1642218407565,0.0462,43064.0,43061.0,0.00029224]
[1642218407861,0.104276,43064.0,43061.0,0.00029224]
[1642218408262,0.104276,43064.0,43057.0,0.000361]
[1642218408464,0.104276,43064.0,43053.0,0.00042976]
[1642218408763,0.35774327,43064.0,43053.0,0.00042976]
[1642218409162,0.45774327,43064.0,43052.0,1.17574065]
[1642218409362,0.0001719,43063.0,43052.0,1.17574065]
[1642218409816,0.00015471,43062.0,43052.0,1.09074065]
[1642218410015,0.00015471,43062.0,43052.0,1.36145918]
[1642218410219,0.00013752,43061.0,43052.0,0.76614829]
[1642218410415,0.00013752,43061.0,43052.0,0.89814829]
[1642218410615,0.88002382,43064.0,43052.0,0.89814829]
[1642218410616,0.00012033,43060.0,43052.0,0.89814829]
[1642218411019,0.00010314,43059.0,43052.0,0.62742976]
[1642218411420,8.595e-05,43058.0,43052.0,0.62742976]
[1642218411618,8.595e-05,43058.0,43052.0,0.49542976]
[1642218411818,6.876e-05,43057.0,43052.0,0.49542976]
[1642218412218,0.00010314,43059.0,43052.0,0.49542976]
[1642218412418,0.00010314,43059.0,43052.0,0.56542976]
[1642218412619,0.00612054,43058.0,43052.0,0.56542976]
[1642218412821,0.00612054,43058.0,43052.0,0.07]
[1642218413020,6.876e-05,43057.0,43052.0,0.07]
[1642218413857,6.876e-05,43057.0,43051.0,0.25605981]
[1642218414555,6.876e-05,43057.0,43050.0,0.6347]
[1642218415655,6.876e-05,43057.0,43050.0,0.83418482]
[1642218416456,6.876e-05,43057.0,43050.0,0.88218482]
[1642218417714,6.876e-05,43057.0,43050.0,0.83418482]
[1642218418518,6.876e-05,43057.0,43050.0,0.88118482]
[1642218418717,6.876e-05,43057.0,43050.0,0.6367]
[1642218419819,6.876e-05,43057.0,43050.0,0.5897]
[1642218420020,0.26776177,43057.0,43050.0,0.5897]
[1642218420222,0.25539548,43056.0,43050.0,0.5897]
[1642218420422,0.25539548,43056.0,43049.0,0.5]
[1642218420625,0.25539548,43056.0,43050.0,0.156]
[1642218421764,0.0462,43055.0,43050.0,0.156]
[1642218422364,0.0462,43055.0,43049.0,0.32543633]
[1642218424808,0.0462,43055.0,43047.0,0.569]
[1642218425211,0.0462,43055.0,43048.0,8.595e-05]
[1642218426008,0.058089,43054.0,43048.0,8.595e-05]
[1642218426211,0.0462,43053.0,43048.0,8.595e-05]
[1642218428211,0.0462,43053.0,43047.0,0.00010314]
[1642218428665,0.33902441,43050.0,43045.0,0.52340314]
[1642218429668,0.33902441,43050.0,43045.0,0.49840314]
[1642218429867,0.22580289,43052.0,43045.0,0.49840314]
[1642218430065,0.0462,43051.0,43045.0,0.49840314]
[1642218430268,0.04626876,43051.0,43045.0,0.49840314]
[1642218430467,0.04626876,43051.0,43045.0,0.53040314]
[1642218431072,0.33239408,43050.0,43045.0,0.53040314]
[1642218432512,0.33239408,43050.0,43045.0,0.53440314]
[1642218432812,0.0462,43049.0,43045.0,0.53440314]
[1642218434313,0.0462,43049.0,43045.0,0.0371]
[1642218434511,0.0462,43049.0,43045.0,0.0361]
[1642218435112,0.0462,43049.0,43045.0,0.37868215]
[1642218435914,0.0462,43049.0,43045.0,0.34368215]
[1642218436565,0.0462,43049.0,43045.0,0.0011]
[1642218440508,0.104295,43049.0,43045.0,0.0011]
[1642218443411,0.0462,43049.0,43045.0,0.0011]
[1642218443666,0.22637065,43048.0,43045.0,0.0011]
[1642218444066,0.44239408,43050.0,43045.0,0.0011]
[1642218445473,0.50248808,43050.0,43045.0,0.0011]
[1642218445672,0.40248808,43050.0,43045.0,0.0011]
[1642218445872,0.39048808,43050.0,43045.0,0.0011]
[1642218446074,0.49048808,43050.0,43045.0,0.0011]
[1642218448607,0.49448808,43050.0,43045.0,0.0011]
[1642218449809,0.49048808,43050.0,43045.0,0.0011]
[1642218450411,0.158094,43050.0,43045.0,0.0011]
[1642218450711,0.004,43050.0,43045.0,0.0011]
[1642218451574,0.004,43050.0,43049.0,0.33854729]
[1642218452070,6.876e-05,43051.0,43049.0,0.55098706]
[1642218452269,6.876e-05,43051.0,43050.0,0.66119553]
[1642218452469,6.876e-05,43051.0,43050.0,1.03714853]
[1642218452668,6.876e-05,43051.0,43050.0,0.58714853]
[1642218454078,6.876e-05,43051.0,43050.0,1.08714853]
[1642218454272,0.24600335,43058.0,43051.0,0.375953]
[1642218454474,1.18327705,43060.0,43050.0,0.71119553]
[1642218454675,0.5952,43060.0,43050.0,0.73019553]
[1642218454915,0.00613756,43057.0,43050.0,0.73019553]
[1642218455319,8.595e-05,43056.0,43050.0,0.73019553]
[1642218455717,6.876e-05,43055.0,43050.0,0.73019553]
[1642218455917,6.876e-05,43055.0,43050.0,0.76926759]
[1642218456117,8.595e-05,43056.0,43050.0,0.71119553]
[1642218456519,6.876e-05,43055.0,43050.0,0.71119553]
[1642218456721,6.876e-05,43055.0,43050.0,0.72819553]
[1642218456919,8.595e-05,43056.0,43050.0,0.72819553]
[1642218457421,6.876e-05,43055.0,43052.0,0.05806922]
[1642218457622,6.876e-05,43055.0,43053.0,0.21309747]
[1642218457821,8.595e-05,43056.0,43053.0,0.21309747]
[1642218458122,6.876e-05,43055.0,43053.0,0.27116247]
[1642218458322,6.876e-05,43055.0,43054.0,0.62300853]
[1642218458563,8.595e-05,43056.0,43054.0,0.62300853]
[1642218458763,0.00603442,43057.0,43056.0,0.32093167]
[1642218458963,0.58807705,43063.0,43056.0,0.91769855]
[1642218459163,0.58807705,43063.0,43056.0,0.8450603]
[1642218459366,0.58807705,43063.0,43059.0,0.05805975]
[1642218459563,0.58807705,43063.0,43060.0,0.22827899]
[1642218459962,0.58807705,43064.0,43060.0,0.22827899]
[1642218460364,0.58830052,43064.0,43060.0,0.27827899]
[1642218460562,0.53826049,43064.0,43060.0,0.22827899]
[1642218461163,0.00022347,43064.0,43060.0,0.22827899]
[1642218461766,0.00022347,43064.0,43060.0,0.28633799]
[1642218462416,0.00022347,43064.0,43062.0,0.39936413]
[1642218462616,0.00022347,43064.0,43063.0,0.62164929]
[1642218462815,0.00022347,43064.0,43063.0,1.34355276]
[1642218463215,0.00022347,43064.0,43063.0,0.94355276]
[1642218463414,0.00022347,43064.0,43063.0,1.44355276]
[1642218464620,0.00022347,43064.0,43063.0,1.47255276]
[1642218465220,0.00022347,43064.0,43063.0,1.72255276]
[1642218465819,0.00022347,43064.0,43063.0,1.47255276]
[1642218466074,0.00022347,43064.0,43063.0,1.44355276]
[1642218466676,0.00022347,43064.0,43063.0,1.46955276]
[1642218467876,0.00022347,43064.0,43063.0,1.44355276]
[1642218468677,0.00022347,43064.0,43063.0,1.47455276]
[1642218469926,0.00022347,43064.0,43063.0,1.44355276]
[1642218470726,0.00022347,43064.0,43063.0,1.53160576]
[1642218470925,0.00022347,43064.0,43063.0,1.30995647]
[1642218471127,0.00022347,43064.0,43063.0,1.30874363]
[1642218471326,0.00022347,43064.0,43063.0,1.25069063]
[1642218471924,0.00022347,43064.0,43063.0,1.22069063]
[1642218472726,0.00022347,43064.0,43063.0,1.24969063]
[1642218474065,0.00022347,43064.0,43063.0,1.22069063]
[1642218474665,0.00022347,43064.0,43063.0,1.24969063]
[1642218476066,0.00022347,43064.0,43063.0,1.22069063]
[1642218476268,0.00022347,43064.0,43063.0,0.875953]
[1642218476668,0.00022347,43064.0,43063.0,0.902953]
[1642218477926,0.00022347,43064.0,43063.0,0.875953]
[1642218478827,0.00022347,43064.0,43063.0,0.904953]
[1642218480028,0.00022347,43064.0,43063.0,0.875953]
[1642218480829,0.00022347,43064.0,43063.0,0.904953]
[1642218481464,0.00022347,43064.0,43063.0,0.404953]
[1642218482164,0.00022347,43064.0,43063.0,0.375953]
[1642218486649,0.00022347,43064.0,43062.0,0.5]
[1642218486848,0.00022347,43064.0,43062.0,0.531]
[1642218487052,0.68894627,43067.0,43062.0,0.531]
[1642218487249,0.7411807,43067.0,43062.0,0.531]
[1642218487450,0.00025785,43066.0,43062.0,0.531]
[1642218487852,0.00024066,43065.0,43062.0,0.531]
[1642218488051,0.58894627,43063.0,43062.0,0.531]
[1642218488253,0.96489927,43063.0,43057.0,0.5]
[1642218488450,0.26391956,43061.0,43057.0,0.5]
[1642218488675,0.26391956,43061.0,43057.0,0.637]
[1642218488870,0.00015471,43060.0,43057.0,0.637]
[1642218489269,0.00013752,43059.0,43057.0,0.637]
[1642218489670,0.00012033,43058.0,43057.0,0.637]
[1642218490070,0.00012033,43058.0,43057.0,0.75520833]
[1642218490672,0.00012033,43058.0,43057.0,0.78420833]
[1642218491271,0.00012033,43058.0,43057.0,1.16016133]
[1642218492073,0.00012033,43058.0,43057.0,1.13116133]
[1642218492721,0.00012033,43058.0,43057.0,1.15716133]
[1642218494117,0.00012033,43058.0,43057.0,1.13116133]
[1642218494719,0.00012033,43058.0,43057.0,1.16016133]
[1642218496066,0.00012033,43058.0,43057.0,1.13116133]
[1642218496867,0.00012033,43058.0,43057.0,1.15616133]
[1642218498070,0.00012033,43058.0,43057.0,1.13116133]
[1642218498269,0.00012033,43058.0,43057.0,0.875953]
[1642218498870,0.00012033,43058.0,43057.0,0.900953]
[1642218499270,0.00012033,43058.0,43057.0,1.19710969]
[1642218500121,0.00012033,43058.0,43057.0,1.17210969]
[1642218500821,0.00012033,43058.0,43057.0,1.19710969]
[1642218502726,0.00012033,43058.0,43057.0,1.17210969]
[1642218502928,0.00012033,43058.0,43057.0,1.19510969]
[1642218505971,0.00012033,43058.0,43057.0,0.898953]
[1642218506173,0.00012033,43058.0,43057.0,0.875953]
[1642218506771,0.00012033,43058.0,43057.0,0.900953]
[1642218507516,0.00012033,43058.0,43057.0,1.23606665]
[1642218508015,0.00012033,43058.0,43057.0,1.21106665]
[1642218508421,0.00012033,43058.0,43057.0,0.5]
[1642218508821,0.00012033,43058.0,43057.0,0.53]
[1642218510120,0.00012033,43058.0,43057.0,0.5]
[1642218510417,0.00012033,43058.0,43053.0,0.81846168]
[1642218510817,0.00010314,43057.0,43053.0,0.5]
[1642218511276,8.595e-05,43056.0,43053.0,0.5]
[1642218511674,6.876e-05,43055.0,43053.0,0.5]
[1642218511875,6.876e-05,43055.0,43054.0,0.375953]
[1642218512076,0.00012033,43058.0,43054.0,0.375953]
[1642218512277,6.876e-05,43055.0,43053.0,0.5]
[1642218512577,0.00012033,43058.0,43054.0,0.375953]
[1642218512779,0.00012033,43058.0,43053.0,0.537]
[1642218513478,0.00010314,43057.0,43053.0,0.537]
[1642218513878,8.595e-05,43056.0,43053.0,0.537]
[1642218514082,8.595e-05,43056.0,43054.0,0.375953]
[1642218514280,6.876e-05,43055.0,43054.0,0.375953]
[1642218518122,6.876e-05,43055.0,43053.0,0.5]
[1642218518805,6.876e-05,43055.0,43053.0,0.518]
[1642218520308,6.876e-05,43055.0,43053.0,0.5]
[1642218520906,6.876e-05,43055.0,43053.0,0.518]
[1642218521806,6.876e-05,43055.0,43053.0,0.018]
[1642218522111,6.876e-05,43055.0,43052.0,0.5]
[1642218522112,0.0462,43054.0,43052.0,0.5]
[1642218522317,0.25981367,43053.0,43052.0,0.5]
[1642218522522,0.30601367,43053.0,43052.0,0.5]
[1642218522920,0.30601367,43053.0,43052.0,0.547]
[1642218523120,0.67537084,43053.0,43052.0,0.047]
[1642218523319,1.05132384,43053.0,43052.0,0.047]
[1642218524222,0.058096,43050.0,43045.0,0.5011]
[1642218524420,0.27485086,43049.0,43045.0,0.5011]
[1642218524625,0.0462,43048.0,43046.0,8.595e-05]